Cogmind - Beta 17.1 @@@ ROGUE MODE // 2026.09.06 @ 03:08:55 Player: 4R-ZE3 Result: Self-destructed Performance ------------- Evolutions (0) 0 Regions Visited (3) 600 Robots Destroyed (16) 80 Value Destroyed (394) 394 Prototype IDs (20) 400 Alien Tech Used (0) 0 Bonus (59) 59 TOTAL SCORE: 1533 Bonus ------- Registered with UFD 300 Friendly Fire -241 Cogmind --------- Core Integrity 105/250 Matter 220/300 Energy 290/290 System Corruption 0% Temperature Cool (0) Movement Treading (160) Location -7/Scraptown Parts ------- > --- POWER (1) -------- Improved Deuterium Engine > --- PROPULSION (2) --- Light Treads Improved Medium Treads > --- UTILITY (2) ------ Improved Heat Sink Large Storage Unit > --- WEAPON (2) ------- Long-range Missile Launcher Spear > --- INVENTORY (15) --- Light Treads Titanium Leg Titanium Leg Deep Structural Scanner Advanced Visual Processing Unit Advanced Melee Analysis Suite Advanced Melee Analysis Suite Advanced Melee Analysis Suite Advanced Melee Analysis Suite Medium Armor Plating Layered Light Armor Plating Gun Armor Improved Hacking Suite System Restoration Module Multitool Peak State ------------ > --- POWER ------------ Improved Deuterium Engine > --- PROPULSION ------- Light Treads Improved Medium Treads > --- UTILITY ---------- Improved Heat Sink Large Storage Unit > --- WEAPON ----------- Long-range Missile Launcher Spear > --- INVENTORY -------- Light Treads Titanium Leg Titanium Leg Deep Structural Scanner Advanced Visual Processing Unit Advanced Melee Analysis Suite Advanced Melee Analysis Suite Advanced Melee Analysis Suite Advanced Melee Analysis Suite Medium Armor Plating Layered Light Armor Plating Gun Armor Improved Hacking Suite System Restoration Module Multitool [Rating: 29] Favorites ----------- Power Ion Engine Engine Ion Engine Propulsion Light Treads Treads Light Treads Utility Improved Heat Sink Device Improved Heat Sink Storage Medium Storage Unit Weapon Subdweller Laser Energy Gun Subdweller Laser Launcher Long-range Missile Launcher Piercing Weapon Spear Build | -11 -10 -10 -7 ------- Run | Yrd Mat Sub Scr Slots Evolved . | . . . . Power . | . . . . Propulsion . | . . . . Utility . | . . . . Weapon . | . . . . Parts Attached 20 | 6 2 6 6 Power 3 | 1 . 1 1 Engine 3 | 1 . 1 1 Core . | . . . . Reactor . | . . . . Propulsion 3 | 2 . . 1 Treads 3 | 2 . . 1 Leg . | . . . . Wheel . | . . . . Hover . | . . . . Flight . | . . . . Utility 6 | 1 2 1 2 Device 2 | . 1 . 1 Storage 4 | 1 1 1 1 Processor . | . . . . Hackware . | . . . . Protection . | . . . . Artifact . | . . . . Weapon 8 | 2 . 4 2 Energy Gun 6 | 2 . 4 . Energy Cannon . | . . . . Ballistic Gun . | . . . . Ballistic Cannon . | . . . . Launcher 1 | . . . 1 Special Weapon . | . . . . Impact Weapon . | . . . . Slashing Weapon . | . . . . Piercing Weapon 1 | . . . 1 Special Melee Weapon . | . . . . Unidentified Prototypes . | . . . . Parts Lost 3 | . . 3 . Power 1 | . . 1 . Propulsion . | . . . . Utility . | . . . . Weapon 2 | . . 2 . Highest Loss Streak 2 | . . 2 . To Critical Strikes . | . . . . Average Backups 10 | 1 7 9 11 Power . | . 1 1 . Propulsion 3 | . 3 3 2 Utility 4 | . 1 2 6 Weapon 1 | . 1 1 1 Tool/Special . | . . . . Unused Backups 26 | . . 5 21 Power 2 | . . 1 1 Propulsion 8 | . . 3 5 Utility 12 | . . . 12 Weapon 3 | . . 1 2 Tool/Special 1 | . . . 1 Average Slot Usage (%) 97 | . 98 99 96 Engine 13 | . 14 14 13 Treads 27 | . 28 28 27 Device 13 | . 12 14 14 Storage 13 | . 14 14 13 Energy Gun 21 | . 28 27 15 Launcher 2 | . . . 4 Piercing Weapon 3 | . . . 5 Peak Build Rating 29 | 6 9 14 29 Average Rating 14 | 4 8 11 18 On Entrance 7 | . 6 9 14 Avg Prop Armor Cover (%) . | . . . . Naked Turns . | . . . . Heaviest Build 41 | 13 19 24 41 Greatest Support 50 | 40 40 40 50 Greatest Overweight (x) 1 | . . . 1 Average Overweight (x) . | . . . . Largest Inventory Capacity 15 | 8 10 10 15 Average Capacity 11 | 6 9 10 13 Most Carried 15 | 4 9 10 15 Average Carried 10 | 2 7 9 11 Final Capacity 15 | 8 10 10 15 Final Carried 15 | 4 9 9 15 Class Distribution -------------------- 66% | Mutant 33% | Scavenger-Mutant Dominant Class ---------------- Mutant | -10/Materials Mutant | -10/Subcaves Scavenger-Mutant | -7/Scraptown Resources | -11 -10 -10 -7 ----------- Run | Yrd Mat Sub Scr Matter Collected 390 | 222 58 60 50 Remotely . | . . . . Salvage Created 634 | . 336 298 . Parts 40 | . 17 23 . Haulers Intercepted 1 | . 1 . . Recyclers Shooed 1 | . 1 . . Parts Field Recycled . | . . . . Retrieved Matter . | . . . . Parts Self-Destructed 3 | . . 3 . Prevented 2 | . . 2 . Parts Restored . | . . . . Kills | -11 -10 -10 -7 ------- Run | Yrd Mat Sub Scr Combat Hostiles Destroyed 14 | . 7 7 . Guns 14 | . 7 7 . Classes Destroyed 6 | . 4 2 . Hauler 1 | . 1 . . Recycler 1 | . 1 . . Swarmer 5 | . 3 2 . Grunt 4 | . 4 . . Artisan 2 | . . 2 . Subdweller 5 | . . 5 . Best Kill Streak 3 | . 3 2 . Combat Bots Only 2 | . 2 2 . Max Kills in Single Turn 1 | . 1 1 . Gunslinging . | . . . . Exploded . | . . . . Melee . | . . . . Uniques/NPCs Destroyed . | . . . . Combat | -11 -10 -10 -7 -------- Run | Yrd Mat Sub Scr Hostile Shots Fired 55 | . 22 33 . Missed 18 | . 7 11 . Hits 37 | . 15 22 . Projectile 37 | . 15 22 . Critical Strikes 1 | . . 1 . Damage Taken 611 | . 154 457 . Core 145 | . 12 133 . Absorbed by Shields . | . . . . Core Remaining (%) 100 | 100 . . . Volleys Fired 70 | . 32 38 . Largest 2 | . 2 2 . Hottest 120 | . 90 120 . Shots Fired 125 | . 63 62 . Gun 125 | . 63 62 . Cannon . | . . . . Launcher . | . . . . Special . | . . . . Kinetic . | . . . . Thermal 121 | . 63 58 . Explosive . | . . . . Electromagnetic 4 | . . 4 . Robot Hit Streak 18 | . 18 13 . Robot Miss Streak 2 | . 2 1 . Penetration Max . | . . . . Secondary Targets 1 | . 1 . . Max Gunslinging Chain 1 | . 1 . . Shots Hit Robots 88 | . 48 39 1 Core Hits 34 | . 16 17 1 Critical Kills . | . . . . Critical Parts Destroyed . | . . . . Critical Strikes 4 | . 3 1 . Burn 4 | . 3 1 . Melee Attacks 1 | . . . 1 Impact . | . . . . Slashing . | . . . . Piercing 1 | . . . 1 Sneak Attacks . | . . . . Combat Hostiles . | . . . . Follow-up Attacks . | . . . . Damage Inflicted 1213 | . 573 570 70 Guns 1143 | . 573 570 . Cannons . | . . . . Explosions . | . . . . Melee 70 | . . . 70 Ramming . | . . . . Kinetic . | . . . . Thermal 1133 | . 573 560 . Explosive . | . . . . Electromagnetic 10 | . . 10 . Impact . | . . . . Slashing . | . . . . Piercing 70 | . . . 70 Highest Corruption . | . . . . Average Corruption . | . . . . Corruption Purged . | . . . . Corruption Blocked . | . . . . Overload Shots . | . . . . Overflow Damage . | . . . . Projectiles . | . . . . Explosions . | . . . . Melee . | . . . . Knockbacks . | . . . . Impact . | . . . . Kinetic . | . . . . Secondary . | . . . . Self-Inflicted Damage . | . . . . Shots . | . . . . Rammed . | . . . . Targets Rammed . | . . . . Kicked . | . . . . Crushed . | . . . . Highest Temperature 8 | . 8 . . Average Temperature 3 | . 3 . . Received Heat Transfer 129 | . 60 69 . Siege Activations . | . . . . Martial Activations . | . . . . Shielding Activations . | . . . . Robots Disrupted . | . . . . Combat Hostiles . | . . . . Robots Corrupted . | . . . . Combat Hostiles . | . . . . Parts Fried . | . . . . Impact Corruptions . | . . . . Robots Melted 1 | . 1 . . Combat Hostiles . | . . . . Parts Melted 3 | . 2 1 . Heat Transferred 2819 | . 1747 1072 . Parts Sabotaged . | . . . . Parts Stolen . | . . . . Parts Stripped . | . . . . Power Chain Reactions . | . . . . Alert | -11 -10 -10 -7 ------- Run | Yrd Mat Sub Scr Maximum Alert Level . | . . . . Low Security (%) 100 | 100 100 . . Level 1 . | . . . . Level 2 . | . . . . Level 3 . | . . . . Level 4 . | . . . . Level 5 . | . . . . High Security . | . . . . Max Security . | . . . . Peak Influence 114 | . 114 . . Initial . | . . . . Average 35 | . 38 . . Influence Increases 357 | . 272 85 . Destroy 0b10 Robot/C 180 | . 140 40 . Destroy 0b10 Robot/NC 10 | . 10 . . Destroy Leader 32 | . 32 . . Successful Hack 15 | . 15 . . Select Force Hacks 30 | . 30 . . Partial Spotted 15 | . 15 . . Lose Combat Pursuer 75 | . 30 45 . Influence Decreases 357 | . 272 85 . Time Decay 357 | . 272 85 . Squads Dispatched 2 | . 2 . . Investigation 1 | . 1 . . Extermination . | . . . . Reinforcement 1 | . 1 . . Assault . | . . . . Garrison . | . . . . Intercept . | . . . . Searches Triggered . | . . . . Construction Impeded . | . . . . Haulers Reinforced . | . . . . Active Scanning Responses . | . . . . Cargo Convoy Interrupts . | . . . . Stealth | -11 -10 -10 -7 --------- Run | Yrd Mat Sub Scr Distress Signals . | . . . . Communications Jammed . | . . . . Distress Signals . | . . . . Times Spotted 25 | . 15 9 1 Peak Tracking Total 4 | . 3 4 1 Tactical Retreats 3 | . 2 1 . Traps | -11 -10 -10 -7 ------- Run | Yrd Mat Sub Scr Traps Triggered 1 | . . 1 . Indirectly . | . . . . Trap Hack Attempts . | . . . . Triggered . | . . . . Disarmed . | . . . . Reprogrammed . | . . . . Reused . | . . . . Traps Extracted . | . . . . Installed . | . . . . Triggered . | . . . . Machines | -11 -10 -10 -7 ---------- Run | Yrd Mat Sub Scr Machines Disabled 2 | . . 2 . Max in Single Turn 1 | . . 1 . Machines Repaired . | . . . . Machines Dismantled . | . . . . Machines Sabotaged . | . . . . Overloaded Fab Kills . | . . . . Hacking | -11 -10 -10 -7 --------- Run | Yrd Mat Sub Scr Machines Accessed 8 | . 3 2 3 Terminals 2 | . 2 . . Fabricators . | . . . . Repair Stations . | . . . . Recycling Units 1 | . 1 . . Scanalyzers . | . . . . Garrison Access . | . . . . Total Hacks 32 | . 6 6 20 Successful 30 | . 4 6 20 Failed 2 | . 2 . . Catastrophic . | . . . . Database Lockouts . | . . . . Manual 6 | . 5 . 1 Terminals 5 | . 5 . . Fabricators . | . . . . Repair Stations . | . . . . Recycling Units 1 | . 1 . . Scanalyzers . | . . . . Garrison Access . | . . . . Terminal Hacks 28 | . 2 6 20 Record 24 | . . 5 19 Robot Analysis 1 | . 1 . . Zone Layout 1 | . 1 . . Proto ID Catalog 2 | . . 1 1 Fabricator Hacks . | . . . . Repair Station Hacks . | . . . . Recycling Unit Hacks . | . . . . Scanalyzer . | . . . . Garrison Access Hacks . | . . . . Unauthorized Hacks 2 | . 2 . . Terminals 1 | . 1 . . Botnet 1 | . 1 . . Fabricators . | . . . . Repair Stations . | . . . . Recycling Units 1 | . 1 . . Tunnel 1 | . 1 . . Scanalyzers . | . . . . Garrison Access . | . . . . Data Cores Recovered . | . . . . Used . | . . . . Hacking Detections 2 | . 2 . . Full Trace Events 1 | . 1 . . Feedback Events . | . . . . Feedback Blocked . | . . . . Robot Schematics Acquired . | . . . . Robots Built . | . . . . Authchips . | . . . . Time . | . . . . Total Robot Build Rating . | . . . . Part Schematics Acquired . | . . . . Parts Built . | . . . . Authchips . | . . . . Time . | . . . . Total Part Build Rating . | . . . . Part Studies Acquired . | . . . . Parts Repaired . | . . . . Time . | . . . . Parts Recycled . | . . . . Recycled Matter . | . . . . Retrieved Matter . | . . . . Retrieved Components . | . . . . Parts Scanalyzed . | . . . . Part Schematics Acquired . | . . . . Parts Damaged . | . . . . Bothacking | -11 -10 -10 -7 ------------ Run | Yrd Mat Sub Scr Used RIF Installer . | . . . . Robots Hacked . | . . . . Non-combat . | . . . . Combat . | . . . . Robot Hacks Applied . | . . . . Relay Couplers Released . | . . . . Fabnet Peak Effective % . | . . . . Robots Rewired . | . . . . Allies Hacked . | . . . . Hacks Repelled . | . . . . Allies | -11 -10 -10 -7 -------- Run | Yrd Mat Sub Scr Total Allies . | . . . . Largest Group . | . . . . Highest-Rated Group . | . . . . Highest-Rated Ally . | . . . . Total Orders . | . . . . Ally Attacks . | . . . . Total Damage . | . . . . Kills . | . . . . Allies Corrupted . | . . . . Allies Melted . | . . . . Intel | -11 -10 -10 -7 ------- Run | Yrd Mat Sub Scr Active Infowar (turns) 14 | . . . 14 Structural 14 | . . . 14 Robot Analysis Total 1 | . 1 . . Derelict Logs Recovered 7 | . . 2 5 Drone Launches . | . . . . Drone Recoveries . | . . . . Exploration | -11 -10 -10 -7 ------------- Run | Yrd Mat Sub Scr Turns Passed 5079 | 73 824 1380 2802 Spaces Moved 2649 | 41 201 779 1628 Core 107 | 4 . . 103 Treads 2542 | 37 201 779 1525 Legs . | . . . . Wheels . | . . . . Hover . | . . . . Flight . | . . . . Fastest Speed 50 | 50 160 160 50 Average Speed 164 | 149 160 160 167 Slowest Speed 240 | 160 160 160 240 Overloaded Moves . | . . . . Propulsion Burnouts . | . . . . Robots Hopped . | . . . . Potential Cave-ins . | . . . . Cave-ins Triggered . | . . . . Exploration Rate (%) 42 | 3 39 45 84 Regions Visited 3 Branch Regions 2 Pre-discovered Areas 5 | . 1 . 4 Known Exits Taken . | . . . . Unknown Exits Taken 3 | 1 1 1 . Scrap Searched 9 | . . 6 3 Spaces Dug . | . . . . Terrain Destroyed . | . . . . Melee . | . . . . Projectile . | . . . . AOE . | . . . . Terrain Rammed . | . . . . Walls Destroyed . | . . . . Machines Disabled . | . . . . Actions | -11 -10 -10 -7 --------- Run | Yrd Mat Sub Scr Total 3244 | 50 640 855 1699 Wait 418 | . 402 12 4 Move 2646 | 40 200 778 1628 Hop . | . . . . Pick Up 44 | 4 4 9 27 Fast Attach 16 | 6 1 2 7 Attach 6 | . . 3 3 Detach 1 | . . 1 . Swap 6 | . 1 3 2 Drop 27 | . . 9 18 Fire 70 | . 32 38 . Melee 1 | . . . 1 Ram . | . . . . Kick . | . . . . Crush . | . . . . Escape Stasis . | . . . . Rewire 9 | . . . 9 Trap . | . . . . Miscellaneous . | . . . . Route ------- -11/Scrapyard -10/Materials (discovered 2 exits: [*Mat] / *Sub) -10/Subcaves (discovered 4 exits: [*Mat x2] / Rec / *Scr) -7/Scraptown (discovered 2 exits: *Fac x2) History --------- Turn | Location | Event 5 | -11/Scrapyard | Discovered new exit (range 15) 74 | -11/Scrapyard | Entered Materials 75 | -10/Materials | Met a group of wandering Federalists 275 | -10/Materials | Discovered new exit (range 16) 305 | -10/Materials | Build established: Mutant 889 | -10/Materials | Discovered new exit (range 6) 898 | -10/Materials | Entered Subcaves 899 | -10/Subcaves | Approached by a straggling Scientist 934 | -10/Subcaves | Visited Clippyterm 938 | -10/Subcaves | Identified exit to Recycling 938 | -10/Subcaves | Learned Factory stockpile data 989 | -10/Subcaves | Ambushed by angry Subdweller bent on revenge 1082 | -10/Subcaves | Discovered new exit (range 15) 1334 | -10/Subcaves | Discovered new exit (range 14) 1425 | -10/Subcaves | Learned Materials stockpile data 1459 | -10/Subcaves | Visited 4L-MR0's lab 1467 | -10/Subcaves | Learned Materials trap positions 1483 | -10/Subcaves | Found Gun Armor 1572 | -10/Subcaves | Shifting Twisted Machinery released Barrage Gun 1585 | -10/Subcaves | Shifting Twisted Machinery released Battle Cannon 1741 | -10/Subcaves | Disturbed a concealed Subdweller 1745 | -10/Subcaves | Core integrity fell below 50% 2249 | -10/Subcaves | Scientist uncovered a shortcut to Scraptown 2278 | -10/Subcaves | Entered Scraptown 2432 | -7/Scraptown | Visited UFD Registry 2432 | -7/Scraptown | Registered with UFD as "Bioform" 2443 | -7/Scraptown | Build established: Scavenger-Mutant 2710 | -7/Scraptown | Visited Fellowship of the Rings 2720 | -7/Scraptown | Visited Comm Corps 2768 | -7/Scraptown | Scanned Subdweller tech in exchange for log data 2771 | -7/Scraptown | Learned location of Quarantine (-3) 2773 | -7/Scraptown | Learned Factory garrison access intel 2774 | -7/Scraptown | Learned Factory trap positions 2778 | -7/Scraptown | Learned Research garrison access intel 2795 | -7/Scraptown | Discovered new exit (range 13) 2837 | -7/Scraptown | Guru changed UFD alias to "Wrenchcore" 2904 | -7/Scraptown | Visited Supply Room 2950 | -7/Scraptown | Visited CPS Storage 3010 | -7/Scraptown | Visited Chapter 10 3032 | -7/Scraptown | Visited A0-MCA Data Center 3054 | -7/Scraptown | Visited Abandonware Association 3072 | -7/Scraptown | Learned abandonware demo "MELTYB.EXE" 3231 | -7/Scraptown | Visited LU-1G1's Boring Crew 3252 | -7/Scraptown | Visited Scrap Suit Storage 3272 | -7/Scraptown | Visited Science Testing Area 3287 | -7/Scraptown | Visited Cartography Club 3311 | -7/Scraptown | Visited Observation Area 3381 | -7/Scraptown | Visited Science Guys 3501 | -7/Scraptown | Visited SPCMW 4146 | -7/Scraptown | Build established: Mutant 4580 | -7/Scraptown | Received an X-ray algorithm 4654 | -7/Scraptown | Ran an X-ray algorithm 4795 | -7/Scraptown | Learned location of Recycling (-7) 4795 | -7/Scraptown | Learned location of Upper Caves (-4) 4795 | -7/Scraptown | Learned 12 Materials zone layouts 4795 | -7/Scraptown | Learned 16 Factory zone layouts 4795 | -7/Scraptown | Learned 24 Factory zone layouts 4795 | -7/Scraptown | Learned 16 Upper Caves zone layouts 4795 | -7/Scraptown | Learned 24 Proximity Caves zone layouts 4795 | -7/Scraptown | Learned Factory emergency access door positions 4795 | -7/Scraptown | Learned location of 2 exits from Research 4795 | -7/Scraptown | Learned location of 2 exits from Upper Caves 4795 | -7/Scraptown | Learned location of 1 exit from Proximity Caves 4795 | -7/Scraptown | Identified exit to Factory 4799 | -7/Scraptown | Found Deep Structural Scanner 5078 | -7/Scraptown | Attacked by Scraptown defenders 5080 | -7/Scraptown | Self-destructed Last Messages --------------- 04831_ Acquired Imp. Hacking Suite. 04834_ Acquired Adv. Melee Analysis Suite. 04837_ Acquired Med. Armor Plating. 04839_ Acquired System Restoration Module. 04842_ Acquired Lrn. Missile Launcher. 04844_ Acquired Imp. Heat Sink. 04849_ Acquired Adv. Melee Analysis Suite. 04851_ Acquired Lgt. Treads. 04854_ Acquired Spear. 04857_ Acquired Titanium Leg. 04859_ Acquired Adv. Melee Analysis Suite. 04862_ Acquired Lgt. Treads. 04866_ Dropped Lgt. Treads. 04871_ Acquired Adv. Melee Analysis Suite. 04875_ Acquired Lyr. Light Armor Plating. 04960_ IH-14P(p) closely examines the mainframe. 05076_ Wyrm Statue cannot be rewired. 05077_ Sneak attack on Wyrm Statue. 05078_ ANNOUNCEMENT: Intruder alert! Defend Scraptown! Map ----- +----------------------------------------------------+ | #"" " "##"% "#?# #???# " " #??#""" " """ | | #"""" "##"!] "#?# #???? " " #???" " ? | | #""""""##""""""#?# #???? "" "" #??????""?""? | | ################?# #???? """""" ?#???????#??## | | #######??#####???# #?????? ???????????????? | | """""""#?#"""#???# #??????????????????????????? | | " "#?#" "#???# #????????????????????????### | | " """ "#?# #???# #??????????????????????""""" | | " """ "#?# ##### #?????????????????????""" "" | | " """ ???# ##????????????##????"""" " | | " """ ???# #???????????? ? | | " """ ???# ##???###????## #????"" "" " | | " """ "??##### ### ##???"""""???"" "#?????"""""" | | " """ "??????# #??##????"" ""??""" "#????????""" | | """ "####### ######???"" "?#""" "#????????### | | " """ "##""""" """""#??#" ""##"" "#?########## | | " "##""" " " "#??#"" ""##"" "#?#""""""""" | | """""""##" "#??#"" ""##"| "#?#"" ! [*[ | | #######?#""""" """""#??#"" ""##"| "#?#"" | | ##??????###### ######??#" ""##"" "#?#"" | | ############# #########"" ""##"" ""###""" """"" | | | | | | ###"""" """"######"""" """""######""" """##""" " | | ###?#""" """#????#" "#????#"" |"##"" | | ????#""" ""#????#" @x "#????#" ""##"" | | ????#"""" "#????#" ! DD "#????#" ""##" | | ????#""""" "#????#"""""%DD "#????#" | | ?????"""""""""#????#""""""""""#????#"""""""##""""" | | ??????#########????############????############### | | | | | | | | | | | | | | | | | | | | | | | | | | | | | | | | | | | | | | | | | +----------------------------------------------------+ Best States ------------- Heat Dissipation 39 Energy Generation 16 Energy Capacity 290 Matter Stores 300 Matter Capacity 300 Sight Range 16 Terrain Scan Density 10 Evasion (%) 50 Recoil Reduction 2 Item Schematics ----------------- None Robot Schematics ------------------ None Fabricated ------------ Nothing Repaired ---------- Nothing Studied --------- None Alien Tech Used ----------------- None Achievements -------------- None Challenges ------------ None Game ------ Seed BackdoorPlasmaJammer Manual? 0 Play Time 00:20:17 Cumulative 339.2 hours Start 2026.09.06 @ 02:50:43 End 2026.09.06 @ 03:08:55 Sessions 1 Manual Loads 0 Difficulty Rogue Special Mode None Game No. 318 Rogue 264 Adventurer 54 Explorer 0 Win Type - Total 16 Types 11/1/1/1/0/0/0/1/0/1 Lore% 80 Gallery% 69 Achievement% 65 Wizard Run 0 Options --------- Layout 1 ASCII 0 Keyboard 0 Movement Mouse Keybinds 1 Fullscreen 2 Font 32/Tamsyn Map View 50x35 Zoom Use 0% Tactical HUD 1 Map Filters NONE Filters NONE Steam 1 RUN: 0b07f8b6-a318-4723-aa7f-751e461f1222